Cogmind - Beta 13 @@@ ROGUE MODE // 2024.05.19 @ 21:52:08 Player: Erik The Viking Result: Destroyed by X-62 Marksman with Gauss Rifle Performance ------------- Evolutions (2) 1000 Regions Visited (4) 800 Robots Destroyed (53) 265 Value Destroyed (1206) 1206 Prototype IDs (4) 80 Alien Tech Used (0) 0 Bonus (0) 0 TOTAL SCORE: 3351 Bonus ------- None Cogmind --------- Core Integrity 0/550 Matter 184/300 Energy 98/100 System Corruption 0% Temperature Cool (10) Movement Treading (170) Location -8/Materials Parts ------- > --- POWER (1) -------- (None) > --- PROPULSION (2) --- Armored Treads > --- UTILITY (4) ------ Advanced Visual Processing Unit > --- WEAPON (4) ------- (None) > --- INVENTORY (5) ---- Active Sensor Suite Peak State ------------ > --- POWER ------------ Light Angular Momentum Engine > --- PROPULSION ------- Aluminum Leg Carbon-fiber Leg > --- UTILITY ---------- Visual Processing Unit Advanced Visual Processing Unit Advanced Visual Processing Unit Hacking Suite > --- WEAPON ----------- Particle Gun Particle Gun Minigun Axe > --- INVENTORY -------- Mining Laser Stasis Trap Stasis Trap Stasis Trap [Rating: 30] Favorites ----------- Power Light Nuclear Core Engine Light Angular Momentum Engine Power Core Light Nuclear Core Propulsion Improved Aluminum Leg Treads Armored Treads Leg Improved Aluminum Leg Wheel Wheel Flight Unit Improved Flight Unit Utility Visual Processing Unit Device Heat Sink Processor Visual Processing Unit Hackware Hacking Suite Protection Light Armor Plating Weapon Improved Medium Laser Energy Gun Improved Medium Laser Energy Cannon Light EM Pulse Cannon Ballistic Gun Heavy Assault Rifle Ballistic Cannon Light Cannon Launcher Improved Grenade Launcher Special Weapon Mining Laser Slashing Weapon Axe Special Melee Weapon Improved Datajack Build | -11 -10 -9 -9 -8 ------- Run | Yrd Mat Mat Min Mat Slots Evolved 4 | . . 2 . 2 Power . | . . . . . Propulsion . | . . . . . Utility 2 | . . . . 2 Weapon 2 | . . 2 . . Parts Attached 62 | 6 11 6 13 26 Power 3 | . 1 . 1 1 Engine 2 | . 1 . . 1 Core 1 | . . . 1 . Reactor . | . . . . . Propulsion 17 | 3 . 3 5 6 Treads 1 | . . . . 1 Leg 6 | . . . 4 2 Wheel 7 | 3 . 1 . 3 Hover . | . . . . . Flight 3 | . . 2 1 . Utility 12 | . 3 1 1 7 Device 3 | . 1 . 1 1 Storage . | . . . . . Processor 5 | . 1 1 . 3 Hackware 1 | . . . . 1 Protection 3 | . 1 . . 2 Artifact . | . . . . . Weapon 30 | 3 7 2 6 12 Energy Gun 14 | 2 3 1 3 5 Energy Cannon 1 | . 1 . . . Ballistic Gun 5 | 1 1 . 1 2 Ballistic Cannon 4 | . 2 1 1 . Launcher 1 | . . . . 1 Special Weapon 2 | . . . 1 1 Impact Weapon . | . . . . . Slashing Weapon 2 | . . . . 2 Piercing Weapon . | . . . . . Special Melee Weapon 1 | . . . . 1 Unidentified Prototypes 3 | . 1 1 . 1 Parts Lost 28 | . . 6 3 19 Power 3 | . . 1 . 2 Propulsion 4 | . . 1 . 3 Utility 5 | . . 1 . 4 Weapon 16 | . . 3 3 10 Highest Loss Streak 8 | . . 6 7 8 To Critical Strikes . | . . . . . Average Slot Usage (%) 84 | . 89 96 85 80 Engine 3 | . 8 10 . 5 Core 5 | . . . 10 1 Leg 12 | . . . 21 7 Wheel 5 | . 28 17 . 2 Device 4 | . 7 4 1 5 Processor 12 | . 5 6 11 17 Hackware 2 | . . . . 6 Protection 3 | . 12 10 . 2 Energy Gun 18 | . 10 10 23 16 Ballistic Gun 6 | . 5 . 8 5 Ballistic Cannon 3 | . 8 31 . . Special Weapon 4 | . . . 8 . Slashing Weapon 1 | . . . . 5 Naked Turns . | . . . . . Heaviest Build 26 | 4 17 22 15 26 Greatest Support 26 | 26 20 20 26 26 Greatest Overweight (x) 8 | . . 3 1 8 Average Overweight (x) . | . . . . . Largest Inventory Capacity 5 | 5 5 5 5 5 Average Capacity 5 | 5 5 5 5 5 Most Carried 5 | 5 5 5 5 5 Average Carried 4 | 2 4 3 4 4 Final Capacity 5 | 5 5 5 5 5 Final Carried 5 | 5 5 5 3 3 Class Distribution -------------------- 57% | Scavenger-Skirmisher 19% | Mutant 11% | Scavenger-Mutant 8% | Tank Dominant Class ---------------- Mutant | -10/Materials Tank | -9/Materials Scavenger-Skirmisher | -9/Mines Scavenger-Skirmisher | -8/Materials Resources | -11 -10 -9 -9 -8 ----------- Run | Yrd Mat Mat Min Mat Matter Collected 1234 | 260 48 360 270 296 Remotely . | . . . . . Salvage Created 1953 | 214 41 224 272 1202 Parts 113 | 11 4 23 13 62 Haulers Intercepted 3 | . . 1 . 2 Recyclers Shooed 3 | 2 . . . 1 Parts Field Recycled . | . . . . . Retrieved Matter . | . . . . . Parts Self-Destructed . | . . . . . Prevented . | . . . . . Kills | -11 -10 -9 -9 -8 ------- Run | Yrd Mat Mat Min Mat Combat Hostiles Destroyed 29 | . . 8 6 15 Melee 3 | . . . . 3 Guns 15 | . . 1 6 8 Cannons 7 | . . 7 . . AOE 2 | . . . . 2 Classes Destroyed 12 | 3 1 4 1 3 Worker 4 | 2 . 1 . 1 Builder 1 | . . . . 1 Tunneler 5 | 4 . . . 1 Hauler 3 | . . 1 . 2 Recycler 6 | 1 . . . 5 Operator 1 | . . . . 1 Watcher 4 | . 2 1 . 1 Swarmer 7 | . . 3 . 4 Grunt 14 | . . 4 5 5 Duelist 1 | . . . 1 . Sentry 6 | . . 1 . 5 Heavy 1 | . . . . 1 Best Kill Streak 6 | 6 1 3 3 6 Combat Bots Only 4 | . . 3 3 4 Max Kills in Single Turn 2 | 1 1 1 1 2 Gunslinging 1 | . . . . 1 Exploded 1 | . . . . 1 Melee 1 | . . . . 1 Uniques/NPCs Destroyed . | . . . . . Combat | -11 -10 -9 -9 -8 -------- Run | Yrd Mat Mat Min Mat Hostile Shots Fired 238 | . . 69 30 139 Missed 46 | . . 10 5 31 Damage Taken 3385 | . . 805 352 2228 Core 835 | . . 238 40 557 Absorbed by Shields . | . . . . . Redirected to Shielding 50 | . . . . 50 Regen/Repaired (Parts) 23 | . . . . 23 Core Remaining (%) 76 | 100 100 . 30 . Volleys Fired 123 | 15 4 22 14 68 Largest 4 | 2 2 4 4 3 Hottest 235 | 90 112 161 235 155 Shots Fired 286 | 30 8 81 40 127 Gun 210 | 30 2 19 38 121 Cannon 69 | . 6 62 1 . Launcher 6 | . . . . 6 Special 1 | . . . 1 . Kinetic 115 | . 4 62 14 35 Thermal 156 | 30 2 19 26 79 Explosive 6 | . . . . 6 Electromagnetic 9 | . 2 . . 7 Robot Hit Streak 10 | 3 2 7 8 10 Robot Miss Streak 7 | 4 3 4 4 7 Penetration Max . | . . . . . Secondary Targets 3 | . . . 2 1 Max Gunslinging Chain 1 | . . . 1 1 Shots Hit Robots 168 | 15 3 33 24 93 Core Hits 77 | 8 2 14 10 43 Critical Kills . | . . . . . Critical Parts Destroyed . | . . . . . Critical Strikes 7 | 2 . 4 . 1 Burn 3 | 2 . 1 . . Blast 3 | . . 3 . . Sever 1 | . . . . 1 Melee Attacks 16 | . . . . 16 Impact . | . . . . . Slashing 16 | . . . . 16 Piercing . | . . . . . Sneak Attacks 7 | . . . . 7 Combat Hostiles . | . . . . . Follow-up Attacks . | . . . . . Damage Inflicted 3934 | 221 75 609 426 2603 Guns 1932 | 221 . 150 426 1135 Cannons 534 | . 75 459 . . Explosions 681 | . . . . 681 Melee 787 | . . . . 787 Ramming . | . . . . . Kinetic 1022 | . 39 459 139 385 Thermal 1407 | 221 . 150 287 749 Explosive 603 | . . . . 603 Electromagnetic 115 | . 36 . . 79 Impact . | . . . . . Slashing 787 | . . . . 787 Piercing . | . . . . . Highest Corruption . | . . . . . Average Corruption . | . . . . . Corruption Purged . | . . . . . Corruption Blocked . | . . . . . Overload Shots . | . . . . . Overflow Damage 182 | . . . . 182 Projectiles . | . . . . . Explosions 11 | . . . . 11 Melee 171 | . . . . 171 Knockbacks 7 | . . 7 . . Impact . | . . . . . Kinetic 6 | . . 6 . . Secondary 1 | . . 1 . . Self-Inflicted Damage 127 | . . . . 127 Shots 5 | . . . . 5 Rammed . | . . . . . Targets Rammed . | . . . . . Kicked . | . . . . . Crushed . | . . . . . Highest Temperature 838 | 150 . 838 483 429 Average Temperature 176 | 57 . 292 203 131 Received Heat Transfer 1239 | . . 300 192 747 Effects 24 | . . 16 6 2 Shutdowns 6 | . . 3 2 1 Energy Bleed 4 | . . 2 2 . Interference 2 | . . 2 . . Matter Decay 5 | . . 3 2 . Damage (minor) 4 | . . 3 . 1 Damage (major) 1 | . . 1 . . Damage (core) 2 | . . 2 . . Siege Activations . | . . . . . Robots Corrupted . | . . . . . Combat Hostiles . | . . . . . Parts Fried 1 | . 1 . . . Impact Corruptions . | . . . . . Robots Melted 2 | . . . . 2 Combat Hostiles 2 | . . . . 2 Parts Melted 8 | 4 . . 1 3 Heat Transferred 3461 | 719 . 407 666 1669 Parts Sabotaged . | . . . . . Parts Stolen . | . . . . . Parts Stripped . | . . . . . Power Chain Reactions 1 | . . . . 1 Alert | -11 -10 -9 -9 -8 ------- Run | Yrd Mat Mat Min Mat Peak Influence 261 | 35 36 233 172 261 Initial 86 | . 22 14 86 23 Average 80 | 12 26 116 64 119 Maximum Alert Level 1 | . . 1 . 1 Low Security (%) 94 | 100 100 88 100 85 Level 1 5 | . . 11 . 14 Level 2 . | . . . . . Level 3 . | . . . . . Level 4 . | . . . . . Level 5 . | . . . . . High Security . | . . . . . Max Security . | . . . . . Squads Dispatched 5 | . . 1 . 4 Investigation 2 | . . 1 . 1 Extermination . | . . . . . Reinforcement 3 | . . . . 3 Assault . | . . . . . Garrison . | . . . . . Intercept . | . . . . . Searches Triggered . | . . . . . Construction Impeded . | . . . . . Haulers Reinforced . | . . . . . Active Scanning Responses . | . . . . . Cargo Convoy Interrupts . | . . . . . Stealth | -11 -10 -9 -9 -8 --------- Run | Yrd Mat Mat Min Mat Distress Signals 3 | . . 1 . 2 Communications Jammed . | . . . . . Distress Signals . | . . . . . Times Spotted 57 | . 2 20 8 27 Peak Tracking Total 10 | . 1 10 3 7 Tactical Retreats 1 | . . . . 1 Traps | -11 -10 -9 -9 -8 ------- Run | Yrd Mat Mat Min Mat Traps Triggered 1 | . . . . 1 Indirectly . | . . . . . Trap Hack Attempts . | . . . . . Triggered . | . . . . . Disarmed . | . . . . . Reprogrammed . | . . . . . Reused . | . . . . . Traps Extracted . | . . . . . Installed . | . . . . . Triggered . | . . . . . Most Traps Carried 3 | . . . 3 3 Machines | -11 -10 -9 -9 -8 ---------- Run | Yrd Mat Mat Min Mat Machines Disabled . | . . . . . Max in Single Turn . | . . . . . Machines Repaired . | . . . . . Machines Dismantled . | . . . . . Machines Sabotaged . | . . . . . Overloaded Fab Kills . | . . . . . Hacking | -11 -10 -9 -9 -8 --------- Run | Yrd Mat Mat Min Mat Machines Accessed 4 | . 1 1 . 2 Terminals 3 | . 1 1 . 1 Fabricators . | . . . . . Repair Stations 1 | . . . . 1 Recycling Units . | . . . . . Scanalyzers . | . . . . . Garrison Access . | . . . . . Total Hacks 11 | . 2 3 . 6 Successful 8 | . 2 2 . 4 Failed 3 | . . 1 . 2 Catastrophic . | . . . . . Database Lockouts . | . . . . . Manual . | . . . . . Terminals 7 | . 2 3 . 2 Fabricators . | . . . . . Repair Stations 4 | . . . . 4 Recycling Units . | . . . . . Scanalyzers . | . . . . . Garrison Access . | . . . . . Terminal Hacks 5 | . 2 2 . 1 Record 1 | . 1 . . . Prototype ID Bank 1 | . . 1 . . Locate Traps 1 | . 1 . . . Hauler Manifests 1 | . . 1 . . Zone Layout 1 | . . . . 1 Fabricator Hacks . | . . . . . Repair Station Hacks 3 | . . . . 3 Scan Component 2 | . . . . 2 Repair 1 | . . . . 1 Recycling Unit Hacks . | . . . . . Scanalyzer . | . . . . . Garrison Access Hacks . | . . . . . Unauthorized Hacks . | . . . . . Terminals . | . . . . . Fabricators . | . . . . . Repair Stations . | . . . . . Recycling Units . | . . . . . Scanalyzers . | . . . . . Garrison Access . | . . . . . Data Cores Recovered . | . . . . . Used . | . . . . . Hacking Detections 3 | . . 1 . 2 Full Trace Events 2 | . . 1 . 1 Feedback Events . | . . . . . Feedback Blocked . | . . . . . Robot Schematics Acquired . | . . . . . Robots Built . | . . . . . Authchips . | . . . . . Time . | . . . . . Total Robot Build Rating . | . . . . . Part Schematics Acquired . | . . . . . Parts Built . | . . . . . Authchips . | . . . . . Time . | . . . . . Total Part Build Rating . | . . . . . Parts Repaired 1 | . . . . 1 Time 26 | . . . . 26 Parts Recycled . | . . . . . Recycled Matter . | . . . . . Retrieved Matter . | . . . . . Retrieved Components . | . . . . . Parts Scanalyzed . | . . . . . Part Schematics Acquired . | . . . . . Parts Damaged . | . . . . . Bothacking | -11 -10 -9 -9 -8 ------------ Run | Yrd Mat Mat Min Mat Used RIF Installer . | . . . . . Robots Hacked . | . . . . . Non-combat . | . . . . . Combat . | . . . . . Robot Hacks Applied . | . . . . . Relay Couplers Released . | . . . . . Fabnet Peak Effective % . | . . . . . Robots Rewired . | . . . . . Allies Hacked . | . . . . . Hacks Repelled . | . . . . . Allies | -11 -10 -9 -9 -8 -------- Run | Yrd Mat Mat Min Mat Total Allies . | . . . . . Largest Group . | . . . . . Highest-Rated Group . | . . . . . Highest-Rated Ally . | . . . . . Total Orders . | . . . . . Ally Attacks . | . . . . . Total Damage . | . . . . . Kills . | . . . . . Allies Corrupted . | . . . . . Allies Melted . | . . . . . Intel | -11 -10 -9 -9 -8 ------- Run | Yrd Mat Mat Min Mat Robot Analysis Total . | . . . . . Derelict Logs Recovered 1 | . . . 1 . Drone Launches . | . . . . . Drone Recoveries . | . . . . . Exploration | -11 -10 -9 -9 -8 ------------- Run | Yrd Mat Mat Min Mat Turns Passed 2684 | 146 238 236 1187 877 Spaces Moved 1804 | 103 243 173 880 405 Core 45 | 15 . . . 30 Treads 15 | . . . . 15 Legs 1110 | . . . 871 239 Wheels 605 | 88 243 153 . 121 Hover . | . . . . . Flight 29 | . . 20 9 . Fastest Speed 37 | 50 80 37 40 50 Average Speed 113 | 82 80 84 120 139 Slowest Speed 450 | 90 80 255 190 450 Overloaded Moves . | . . . . . Propulsion Burnouts . | . . . . . Robots Hopped 1 | . . 1 . . Cave-ins Triggered . | . . . . . Exploration Rate (%) 38 | 6 37 22 91 37 Regions Visited 4 Branch Regions 1 Pre-discovered Areas 1 | . . . 1 . Known Exits Taken . | . . . . . Unknown Exits Taken 4 | 1 1 1 1 . Scrap Searched 1 | . . . 1 . Spaces Dug . | . . . . . Terrain Destroyed 37 | . . . 1 36 Melee . | . . . . . Projectile 1 | . . . 1 . AOE 36 | . . . . 36 Terrain Rammed . | . . . . . Walls Destroyed . | . . . . . Machines Disabled . | . . . . . Actions | -11 -10 -9 -9 -8 --------- Run | Yrd Mat Mat Min Mat Total 2196 | 134 282 209 977 594 Wait 95 | . . . 56 39 Move 1798 | 102 242 170 879 405 Hop 1 | . . 1 . . Pick Up 68 | 10 14 5 11 28 Fast Attach . | . . . . . Attach 51 | 5 8 4 11 23 Detach 1 | . . 1 . . Swap 11 | 1 3 2 2 3 Drop 32 | 1 11 4 4 12 Fire 123 | 15 4 22 14 68 Melee 16 | . . . . 16 Ram . | . . . . . Kick . | . . . . . Crush . | . . . . . Escape Stasis . | . . . . . Rewire . | . . . . . Trap . | . . . . . Miscellaneous . | . . . . . Route ------- -11/Scrapyard -10/Materials -9/Materials -9/Mines (discovered 2 exits: *Mat / [*Exi]) -8/Materials History --------- Turn | Location | Event 16 | -11/Scrapyard | Discovered new exit (range 15) 147 | -11/Scrapyard | Entered Materials 332 | -10/Materials | Build established: Mutant 360 | -10/Materials | Discovered new exit (range 15) 385 | -10/Materials | Entered another Materials area 385 | -9/Materials | Evolved 2 slots: Weapon x2 513 | -9/Materials | Discovered new exit (range 14) 530 | -9/Materials | Met 8R-AWN 617 | -9/Materials | Core integrity fell below 50% 621 | -9/Materials | Entered Mines 622 | -9/Mines | Followed 8R-AWN into the Mines 656 | -9/Mines | Lost 7 parts (1p1n1u4w) 833 | -9/Mines | Discovered new exit (range 10) 930 | -9/Mines | Found a hidden stash of uninstalled traps 965 | -9/Mines | Learned location of Storage (-7) 977 | -9/Mines | Build established: Scavenger-Skirmisher 1068 | -9/Mines | Discovered new exit (range 5) 1808 | -9/Mines | Entered Materials 1808 | -8/Materials | Evolved 2 slots: Utility x2 2007 | -8/Materials | Lost 4 parts (1p3w) 2223 | -8/Materials | Repaired Heat Sink 2572 | -8/Materials | Core integrity fell below 50% 2602 | -8/Materials | Found Prototype Device 2604 | -8/Materials | Lost 8 parts (1p2n2u3w) 2680 | -8/Materials | Core integrity fell below 20% 2685 | -8/Materials | Destroyed by X-62 Marksman with Gauss Rifle Last Messages --------------- Penetrated by Slug. Mining Laser destroyed. Penetrated by Slug. O-16 Technician destroyed. Minigun destroyed. Penetrated by Slug. Acquired Imp. Grenade Launcher. Penetrated by Slug. U-05 Engineer destroyed. The unstable cave ceiling collapses. Penetrated by Slug. Hrd. Heavy Armor Plating destroyed. Y-45 Defender destroyed. A-02 Transporter destroyed. Penetrated by Slug. Imp. Datajack destroyed. Destroyed Imp. Datajack. Core Shielding destroyed. Imp. Grenade Launcher destroyed. Critical hit (Burn: +37). Map ----- +----------------------------------------------------+ | ???????????????????????????????????????????# #?? | | ???????????????????????????????????????????# #?? | | ?????????????????????????????????????####### #?? | | ?????????????????????????????????????# # #?? | | ?????????????????????????????????????# """ # #?? | | ?????????????????????????????????????# "T" # #?? | | ???????????????????? ???????????????# + #?? | | ?????????????????? ???????????????# !! # #?? | | ?????????????????? == ???????????????#==!! # #?? | | ?????????????????? == ???????????????# !! # #?? | | ???????????????????= ???????????????####### ### | | ??????????????????? ???????????????# # # | | ???????????????????? ???????????????# """ # # | | ???????????????????? ????#####?###??# """ + # | | ?????????????????####a#### T #??# """ # # | | ?????????????????# # #??# """ # + | | ?????????????????# # !#??# """ # # | | ?????????????????# != # #??# # # | | ?????????????????# !%[ + ] #??####### # | | ?????????????????# ! #""" #????????# # | | ?????????????????# #""" ?????????# ### | | ?????????????????# = g """ ] ???????????# #?? | | ?????????????????# ?????????????# ### | | ?????????????????# % #g##???????????# | | ?????????????????# x #???????????# | | ?????????????????# x @ #???????????+ | | ?????????????????# #???????????# " | | ?????????????????## #####???????????# ^""" | | ????????#######???##!%= #???????????????## """ | | ######### % #???# ! ##?????????????####=^""" | | T" ##### !! ###?????????????##! "" | | "% % & #???????????????#! """ | | *%#####[& #???????????????#! "" | | ######### #???# & #???????????????#! ^"" | | ??????#####+#####?###+###???????????????#! " | | ??????# #??? ?????????????????##! | | ??????# """" #???" ??????????????????#### | | ??????# """" #??"" #????????????????????# | | ??????# """" #??"" |#????????????????????# ## | | ??????# #?""" #????????????????????# # | | ??????#[% #?""" =#??????????????????? + + | | ??????#=!*= #?? #??????????????????" # # | | ??????#%=%! #??#####????????????????? # * "! | | ??????#+#### ####?????????????????????? [ ?# %!% | | ??????#[#??###??????????????????????#########! " | | ??????#=#???????????????????????????# +=% ## | | ??????# #???????#######????########?# # !#? | | ?????##+#####???# #????# #?# # #? | | ?????#=* #???# #????# """ #?# ?# #? | | ?????# =%[ #???# #????# """ #?# ??# #? | +----------------------------------------------------+ Best States ------------- Heat Dissipation 50 Energy Generation 18 Energy Capacity 250 Matter Stores 300 Matter Capacity 300 Sight Range 20 Terrain Scan Density 10 Armor Coverage 600 Core Shielding 20 Evasion (%) 55 Melee Accuracy 5 Recoil Reduction 1 Offensive Hacking 10 Item Schematics ----------------- None Robot Schematics ------------------ None Fabricated ------------ Nothing Alien Tech Used ----------------- None Achievements -------------- Shopping List Challenges ------------ None Game ------ Seed ZhirovTransmissionNetwork Manual? 0 Play Time 00:36:15 Cumulative 5.1 hours Start 2024.05.19 @ 21:16:11 End 2024.05.19 @ 21:52:08 Sessions 1 Manual Loads 0 Difficulty Rogue Special Mode None Game No. 6 Rogue 6 Adventurer 0 Explorer 0 Win Type - Total 0 Types 0/0/0/0/0/0/0/0/0 Lore% 5 Gallery% 10 Achievement% 10 Wizard Run 0 Options --------- Layout 2 ASCII 0 Keyboard 0 Movement Arrows Keybinds 0 Fullscreen 0 Font 28/Proggy Map View 65x48 Zoom Use 0% Tactical HUD 0 Map Filters NONE Filters NONE Steam 1 RUN: f7a46b7e-3a44-48a2-bfc2-d59541941471